[Event "*** SCC Grand Prix: Titled Tuesday Blitz"]
[Site "Chess.com"]
[Date "2020.06.02"]
[Round "8"]
[White "evgchess5"]
[Black "Norival"]
[Result "1-0"]
[WhiteElo "2851"]
[BlackElo "2651"]
[TimeControl "180+1"]
[EndTime "11:37:19 PDT"]
[Termination "evgchess5 won by resignation"]

1. e4 {[%clk 0:02:26.6]} 1... e5 {[%clk 0:02:59.7]} 2. Nf3 {[%clk 0:02:26.4]}
2... Nc6 {[%clk 0:03:00.3]} 3. Bc4 {[%clk 0:02:26.2]} 3... Be7 {[%clk
0:02:57.5]} 4. O-O {[%clk 0:02:25.3]} 4... Nf6 {[%clk 0:02:57.5]} 5. d3 {[%clk
0:02:25.5]} 5... O-O {[%clk 0:02:57.6]} 6. c3 {[%clk 0:02:25.2]} 6... d6 {[%clk
0:02:57.9]} 7. Bb3 {[%clk 0:02:24.7]} 7... h6 {[%clk 0:02:50.1]} 8. Re1 {[%clk
0:02:24.4]} 8... Re8 {[%clk 0:02:49.6]} 9. Nbd2 {[%clk 0:02:22.1]} 9... Bf8
{[%clk 0:02:49.8]} 10. h3 {[%clk 0:02:22]} 10... Be6 {[%clk 0:02:47]} 11. Bc2
{[%clk 0:02:21.2]} 11... g6 {[%clk 0:02:43.1]} 12. d4 {[%clk 0:02:19.9]} 12...
Bd7 {[%clk 0:02:38.3]} 13. Nf1 {[%clk 0:02:19.7]} 13... Bg7 {[%clk 0:02:37.7]}
14. Ng3 {[%clk 0:02:19.6]} 14... a5 {[%clk 0:02:35.9]} 15. Be3 {[%clk
0:02:17.9]} 15... Kh7 {[%clk 0:02:31]} 16. Qd2 {[%clk 0:02:15.9]} 16... Qe7
{[%clk 0:02:30.2]} 17. Rad1 {[%clk 0:02:14.8]} 17... Rad8 {[%clk 0:02:29.7]} 18.
Qc1 {[%clk 0:01:48.4]} 18... Ra8 {[%clk 0:02:17.2]} 19. Bb1 {[%clk 0:01:45.6]}
19... a4 {[%clk 0:02:16.1]} 20. Nh2 {[%clk 0:01:41.3]} 20... b5 {[%clk
0:02:07.4]} 21. f4 {[%clk 0:01:40.1]} 21... Na5 {[%clk 0:01:50.4]} 22. Nf3
{[%clk 0:01:31.3]} 22... Nc4 {[%clk 0:01:49.6]} 23. Bf2 {[%clk 0:01:26.3]} 23...
exf4 {[%clk 0:01:47.5]} 24. Qxf4 {[%clk 0:01:25.5]} 24... Nxb2 {[%clk
0:01:46.2]} 25. Rd2 {[%clk 0:01:25]} 25... Nc4 {[%clk 0:01:45.7]} 26. Rde2
{[%clk 0:01:25.6]} 26... Qf8 {[%clk 0:01:42.9]} 27. Bd3 {[%clk 0:01:23.5]} 27...
Kg8 {[%clk 0:01:38.2]} 28. Bxc4 {[%clk 0:01:10.1]} 28... bxc4 {[%clk 0:01:39.1]}
29. d5 {[%clk 0:01:10.6]} 29... c6 {[%clk 0:01:32.8]} 30. Bd4 {[%clk 0:01:10.1]}
30... g5 {[%clk 0:01:24.4]} 31. Qc1 {[%clk 0:01:07.6]} 31... cxd5 {[%clk
0:01:24.1]} 32. e5 {[%clk 0:01:07.4]} 32... dxe5 {[%clk 0:01:17.9]} 33. Nxe5
{[%clk 0:01:07.3]} 33... Be6 {[%clk 0:01:17.6]} 34. Rf1 {[%clk 0:01:04.5]} 34...
Ne4 {[%clk 0:01:01.6]} 35. Nh5 {[%clk 0:00:58.2]} 35... f6 {[%clk 0:00:55.1]}
36. Rxe4 {[%clk 0:00:39.7]} 36... dxe4 {[%clk 0:00:49.9]} 37. Ng6 {[%clk
0:00:37.9]} 37... Qf7 {[%clk 0:00:32.4]} 38. Nxf6+ {[%clk 0:00:37.5]} 38... Bxf6
{[%clk 0:00:32.6]} 39. Rxf6 {[%clk 0:00:37.2]} 39... Qh7 {[%clk 0:00:33.1]} 40.
Qe3 {[%clk 0:00:34.4]} 40... Bf7 {[%clk 0:00:31.5]} 41. Ne5 {[%clk 0:00:33.5]}
41... Rxe5 {[%clk 0:00:32]} 42. Bxe5 {[%clk 0:00:33.3]} 42... Rd8 {[%clk
0:00:32.5]} 43. Bd4 {[%clk 0:00:32.8]} 43... Rf8 {[%clk 0:00:30.8]} 44. Qf2
{[%clk 0:00:30.8]} 44... Re8 {[%clk 0:00:28.6]} 45. Qe3 {[%clk 0:00:29.8]} 45...
Rf8 {[%clk 0:00:28.5]} 46. Qg3 {[%clk 0:00:29.8]} 46... Bg6 {[%clk 0:00:25.7]}
47. Rd6 {[%clk 0:00:23.7]} 47... Qf7 {[%clk 0:00:25]} 48. Rf6 {[%clk 0:00:22.1]}
48... Qe8 {[%clk 0:00:22.9]} 49. Qd6 {[%clk 0:00:17.2]} 49... Rxf6 {[%clk
0:00:17.7]} 50. Qxf6 {[%clk 0:00:17.2]} 1-0

[Event "*** SCC Grand Prix: Titled Tuesday Blitz"]
[Site "Chess.com"]
[Date "2020.06.02"]
[Round "8"]
[White "tteshan"]
[Black "ketster"]
[Result "0-1"]
[WhiteElo "2235"]
[BlackElo "2421"]
[TimeControl "180+1"]
[EndTime "11:37:19 PDT"]
[Termination "ketster won by checkmate"]

1. e4 {[%clk 0:03:00.9]} 1... e5 {[%clk 0:02:59.6]} 2. Nf3 {[%clk 0:03:00.8]}
2... Nc6 {[%clk 0:02:58.8]} 3. Bb5 {[%clk 0:03:01.3]} 3... a6 {[%clk 0:02:58.2]}
4. Ba4 {[%clk 0:03:01.4]} 4... Nf6 {[%clk 0:02:57.9]} 5. O-O {[%clk 0:03:00.5]}
5... Be7 {[%clk 0:02:56.7]} 6. Re1 {[%clk 0:02:59.9]} 6... b5 {[%clk 0:02:54.6]}
7. Bb3 {[%clk 0:02:59.2]} 7... d6 {[%clk 0:02:53.8]} 8. c3 {[%clk 0:02:59.3]}
8... O-O {[%clk 0:02:52.9]} 9. d4 {[%clk 0:02:56.9]} 9... Bg4 {[%clk 0:02:52.4]}
10. d5 {[%clk 0:02:45.7]} 10... Na5 {[%clk 0:02:48.3]} 11. Bc2 {[%clk
0:02:45.8]} 11... Bd7 {[%clk 0:02:35.9]} 12. h3 {[%clk 0:02:43.4]} 12... c6
{[%clk 0:02:35.3]} 13. Be3 {[%clk 0:02:29.1]} 13... Nc4 {[%clk 0:02:31.6]} 14.
Bc1 {[%clk 0:02:19.3]} 14... cxd5 {[%clk 0:02:20]} 15. exd5 {[%clk 0:02:20.2]}
15... Nb6 {[%clk 0:02:16.6]} 16. Nxe5 {[%clk 0:01:58.2]} 16... dxe5 {[%clk
0:01:56.1]} 17. d6 {[%clk 0:01:58.3]} 17... Bxd6 {[%clk 0:01:37.3]} 18. Qxd6
{[%clk 0:01:59.2]} 18... Nc4 {[%clk 0:01:35.9]} 19. Qd3 {[%clk 0:01:40.4]} 19...
e4 {[%clk 0:01:29.6]} 20. Qg3 {[%clk 0:01:37]} 20... Nh5 {[%clk 0:01:06.4]} 21.
Qg5 {[%clk 0:01:31.9]} 21... Qxg5 {[%clk 0:01:05.7]} 22. Bxg5 {[%clk 0:01:32.8]}
22... f5 {[%clk 0:01:04.7]} 23. b3 {[%clk 0:01:29.9]} 23... Ne5 {[%clk 0:00:53]}
24. Nd2 {[%clk 0:01:22]} 24... Rac8 {[%clk 0:00:47.9]} 25. Be7 {[%clk
0:01:00.5]} 25... Rfe8 {[%clk 0:00:47.5]} 26. Bb4 {[%clk 0:01:00.7]} 26... Nf4
{[%clk 0:00:46]} 27. Nf1 {[%clk 0:00:37.3]} 27... Ned3 {[%clk 0:00:42.5]} 28.
Bxd3 {[%clk 0:00:37.7]} 28... Nxd3 {[%clk 0:00:42.3]} 29. Red1 {[%clk
0:00:38.2]} 29... f4 {[%clk 0:00:34.8]} 30. Ba5 {[%clk 0:00:35.2]} 30... Bf5
{[%clk 0:00:33.7]} 31. g4 {[%clk 0:00:32.2]} 31... Bg6 {[%clk 0:00:32.4]} 32. a3
{[%clk 0:00:24.2]} 32... h5 {[%clk 0:00:32.1]} 33. Ra2 {[%clk 0:00:22.3]} 33...
hxg4 {[%clk 0:00:30.5]} 34. hxg4 {[%clk 0:00:23.2]} 34... Rc5 {[%clk 0:00:21.1]}
35. Bb6 {[%clk 0:00:20.6]} 35... Rg5 {[%clk 0:00:19.1]} 36. Nh2 {[%clk
0:00:19.7]} 36... Bf5 {[%clk 0:00:16.3]} 37. Kh1 {[%clk 0:00:12.6]} 37... Be6
{[%clk 0:00:15.7]} 38. c4 {[%clk 0:00:10.6]} 38... bxc4 {[%clk 0:00:15]} 39.
bxc4 {[%clk 0:00:11.5]} 39... Bxc4 {[%clk 0:00:15.3]} 40. Rad2 {[%clk
0:00:11.1]} 40... Kf7 {[%clk 0:00:14.9]} 41. Rb1 {[%clk 0:00:10.6]} 41... Rh8
{[%clk 0:00:14]} 42. Kg1 {[%clk 0:00:09.7]} 42... Be6 {[%clk 0:00:12.4]} 43. Bd4
{[%clk 0:00:09]} 43... Bxg4 {[%clk 0:00:12.1]} 44. Rb7+ {[%clk 0:00:09.2]} 44...
Kg6 {[%clk 0:00:10.5]} 45. Rb6+ {[%clk 0:00:07.7]} 45... Kf5 {[%clk 0:00:10.4]}
46. Rxa6 {[%clk 0:00:06.4]} 46... Be2+ {[%clk 0:00:06.9]} 47. Kh1 {[%clk
0:00:04.8]} 47... Bf3# {[%clk 0:00:07.1]} 0-1

[Event "*** SCC Grand Prix: Titled Tuesday Blitz"]
[Site "Chess.com"]
[Date "2020.06.02"]
[Round "8"]
[White "wonderfultime"]
[Black "gmcorrales"]
[Result "1-0"]
[WhiteElo "2991"]
[BlackElo "2776"]
[TimeControl "180+1"]
[EndTime "11:37:20 PDT"]
[Termination "wonderfultime won by resignation"]

1. d4 {[%clk 0:03:00.9]} 1... Nf6 {[%clk 0:02:25.8]} 2. Nf3 {[%clk 0:03:00.4]}
2... g6 {[%clk 0:02:24.6]} 3. Bg5 {[%clk 0:03:00.5]} 3... Bg7 {[%clk 0:02:21.5]}
4. Nbd2 {[%clk 0:03:00.9]} 4... d5 {[%clk 0:02:21.3]} 5. c3 {[%clk 0:03:01.1]}
5... O-O {[%clk 0:02:21.5]} 6. e3 {[%clk 0:03:01.6]} 6... b6 {[%clk 0:02:21.9]}
7. Bd3 {[%clk 0:03:01.9]} 7... Bb7 {[%clk 0:02:22.3]} 8. O-O {[%clk 0:03:02]}
8... Nbd7 {[%clk 0:02:22.8]} 9. a4 {[%clk 0:03:02]} 9... a6 {[%clk 0:02:23.3]}
10. h3 {[%clk 0:02:59.1]} 10... c5 {[%clk 0:02:22.9]} 11. Qe2 {[%clk 0:02:46.5]}
11... Qc7 {[%clk 0:02:14.7]} 12. Bf4 {[%clk 0:02:45.8]} 12... Qc6 {[%clk
0:02:10.8]} 13. Bh2 {[%clk 0:02:35.3]} 13... c4 {[%clk 0:01:53.7]} 14. Bc2
{[%clk 0:02:34.4]} 14... b5 {[%clk 0:01:54.3]} 15. Rfe1 {[%clk 0:02:34]} 15...
b4 {[%clk 0:01:50.6]} 16. Ne5 {[%clk 0:02:03]} 16... Nxe5 {[%clk 0:01:39.7]} 17.
dxe5 {[%clk 0:01:46.6]} 17... Nd7 {[%clk 0:01:33.1]} 18. e4 {[%clk 0:01:46.4]}
18... e6 {[%clk 0:00:31.2]} 19. exd5 {[%clk 0:00:52.4]} 19... exd5 {[%clk
0:00:32.1]} 20. Nf3 {[%clk 0:00:52.8]} 20... b3 {[%clk 0:00:32.6]} 21. Bd1
{[%clk 0:00:50.2]} 21... Nc5 {[%clk 0:00:32.1]} 22. Nd4 {[%clk 0:00:44.1]} 22...
Qc8 {[%clk 0:00:32.7]} 23. Qd2 {[%clk 0:00:41.4]} 23... Re8 {[%clk 0:00:32.2]}
24. Bg4 {[%clk 0:00:41.5]} 24... Qd8 {[%clk 0:00:27]} 25. e6 {[%clk 0:00:41.6]}
25... f5 {[%clk 0:00:25.4]} 26. Bf3 {[%clk 0:00:41.9]} 26... Ne4 {[%clk
0:00:23.1]} 27. Qe3 {[%clk 0:00:40.4]} 27... Rc8 {[%clk 0:00:10.8]} 28. Rad1
{[%clk 0:00:38.9]} 28... Qe7 {[%clk 0:00:10.7]} 29. Bxe4 {[%clk 0:00:38.1]}
29... fxe4 {[%clk 0:00:11.6]} 30. f3 {[%clk 0:00:35.6]} 30... Bxd4 {[%clk
0:00:10.3]} 31. Rxd4 {[%clk 0:00:35.5]} 31... Qxe6 {[%clk 0:00:10.2]} 32. fxe4
{[%clk 0:00:35.9]} 32... dxe4 {[%clk 0:00:11.1]} 33. Rd6 {[%clk 0:00:36.1]}
33... Qf5 {[%clk 0:00:09.8]} 34. Rf1 {[%clk 0:00:36.1]} 34... Qc5 {[%clk
0:00:09.9]} 35. Rd4 {[%clk 0:00:29.6]} 35... Rcd8 {[%clk 0:00:09.9]} 36. Bf4
{[%clk 0:00:24.6]} 36... Rxd4 {[%clk 0:00:09.6]} 37. cxd4 {[%clk 0:00:25.5]}
37... Qb4 {[%clk 0:00:08.8]} 38. Be5 {[%clk 0:00:24.4]} 38... c3 {[%clk
0:00:06.9]} 39. bxc3 {[%clk 0:00:22.5]} 39... Qe7 {[%clk 0:00:04.7]} 40. c4
{[%clk 0:00:23]} 40... Rf8 {[%clk 0:00:04.6]} 41. Rxf8+ {[%clk 0:00:18.3]} 41...
Qxf8 {[%clk 0:00:05.5]} 42. Qxb3 {[%clk 0:00:18.3]} 42... Bc6 {[%clk 0:00:06]}
43. d5 {[%clk 0:00:17.8]} 43... Bd7 {[%clk 0:00:06.1]} 44. Qe3 {[%clk
0:00:17.4]} 44... Qf5 {[%clk 0:00:05.8]} 45. Bc3 {[%clk 0:00:16.5]} 45... h5
{[%clk 0:00:06.2]} 46. Qd4 {[%clk 0:00:16.5]} 46... Kf7 {[%clk 0:00:06.5]} 47.
c5 {[%clk 0:00:16.9]} 47... Qf4 {[%clk 0:00:05]} 48. Qg7+ {[%clk 0:00:13.9]}
48... Ke8 {[%clk 0:00:04.9]} 49. Qg8+ {[%clk 0:00:14.3]} 49... Ke7 {[%clk
0:00:05]} 50. d6+ {[%clk 0:00:14.4]} 50... Qxd6 {[%clk 0:00:02.4]} 51. cxd6+
{[%clk 0:00:15.3]} 51... Kxd6 {[%clk 0:00:02.6]} 52. Qxg6+ {[%clk 0:00:14.7]}
52... Kd5 {[%clk 0:00:03.5]} 53. Qxa6 {[%clk 0:00:14.5]} 53... Bc6 {[%clk
0:00:02.3]} 54. Qa5+ {[%clk 0:00:14.4]} 54... Kc4 {[%clk 0:00:02.6]} 55. Bb4
{[%clk 0:00:14]} 55... Bd5 {[%clk 0:00:03.5]} 56. Qc5+ {[%clk 0:00:14.1]} 56...
Kd3 {[%clk 0:00:04.4]} 57. Qxd5+ {[%clk 0:00:14.3]} 1-0

[Event "*** SCC Grand Prix: Titled Tuesday Blitz"]
[Site "Chess.com"]
[Date "2020.06.02"]
[Round "8"]
[White "StockholmMissile"]
[Black "wanyaland"]
[Result "1-0"]
[WhiteElo "2444"]
[BlackElo "2297"]
[TimeControl "180+1"]
[EndTime "11:37:20 PDT"]
[Termination "StockholmMissile won by resignation"]

1. d4 {[%clk 0:03:00.9]} 1... d5 {[%clk 0:02:59.5]} 2. c4 {[%clk 0:03:00.7]}
2... e6 {[%clk 0:02:58.9]} 3. Nf3 {[%clk 0:03:00.6]} 3... Nf6 {[%clk 0:02:58.8]}
4. Bg5 {[%clk 0:03:00.5]} 4... c6 {[%clk 0:02:57.6]} 5. e3 {[%clk 0:02:59.8]}
5... Nbd7 {[%clk 0:02:57.1]} 6. Nbd2 {[%clk 0:02:59.1]} 6... Bd6 {[%clk
0:02:55.9]} 7. Bd3 {[%clk 0:02:58.4]} 7... b6 {[%clk 0:02:54.7]} 8. O-O {[%clk
0:02:58]} 8... Bb7 {[%clk 0:02:54.9]} 9. e4 {[%clk 0:02:57.6]} 9... dxe4 {[%clk
0:02:55.1]} 10. Nxe4 {[%clk 0:02:56.6]} 10... Be7 {[%clk 0:02:56]} 11. Nxf6+
{[%clk 0:02:40.3]} 11... Nxf6 {[%clk 0:02:56.9]} 12. Qe2 {[%clk 0:02:36.8]}
12... c5 {[%clk 0:02:54.1]} 13. dxc5 {[%clk 0:02:36.3]} 13... Bxc5 {[%clk
0:02:51.5]} 14. Rad1 {[%clk 0:02:34.6]} 14... Qc7 {[%clk 0:02:51.3]} 15. Bxf6
{[%clk 0:02:30]} 15... gxf6 {[%clk 0:02:51.1]} 16. Be4 {[%clk 0:02:30.4]} 16...
Ke7 {[%clk 0:02:49.3]} 17. Nd4 {[%clk 0:02:23.6]} 17... Qe5 {[%clk 0:02:20]} 18.
Bxb7 {[%clk 0:02:14.9]} 18... Bxd4 {[%clk 0:02:19.7]} 19. Qxe5 {[%clk
0:02:12.2]} 19... fxe5 {[%clk 0:02:18.6]} 20. Bxa8 {[%clk 0:02:10.8]} 20... Rxa8
{[%clk 0:02:19.5]} 21. b3 {[%clk 0:02:09.4]} 21... Rd8 {[%clk 0:02:18.8]} 22. g3
{[%clk 0:02:06.9]} 22... f5 {[%clk 0:02:16.8]} 23. Kg2 {[%clk 0:02:06.7]} 23...
e4 {[%clk 0:02:17]} 24. Rd2 {[%clk 0:02:01.8]} 24... e5 {[%clk 0:02:16.7]} 25.
Rfd1 {[%clk 0:02:01.8]} 25... a5 {[%clk 0:02:14.5]} 26. a3 {[%clk 0:02:00.1]}
26... Ke6 {[%clk 0:02:13.1]} 27. b4 {[%clk 0:01:59.8]} 27... axb4 {[%clk
0:02:12.4]} 28. axb4 {[%clk 0:02:00.6]} 28... Ra8 {[%clk 0:02:12.7]} 29. Rc2
{[%clk 0:01:59.1]} 29... Rc8 {[%clk 0:02:08.9]} 30. Rdc1 {[%clk 0:01:55]} 30...
Rc7 {[%clk 0:02:04]} 31. Ra2 {[%clk 0:01:52.2]} 31... Kd6 {[%clk 0:01:54.7]} 32.
Ra6 {[%clk 0:01:50.7]} 32... Kc6 {[%clk 0:01:54.8]} 33. c5 {[%clk 0:01:44.9]}
33... Kb5 {[%clk 0:01:48.7]} 34. Rxb6+ {[%clk 0:01:43]} 34... Ka4 {[%clk
0:01:46.9]} 35. Rb8 {[%clk 0:01:38.2]} 35... Kb3 {[%clk 0:01:44.3]} 36. Rf1
{[%clk 0:01:01.7]} 36... f4 {[%clk 0:01:40.8]} 37. Kh3 {[%clk 0:00:58.4]} 37...
Kc2 {[%clk 0:01:30]} 38. Kg4 {[%clk 0:00:45.4]} 38... f3 {[%clk 0:01:27.5]} 39.
Kf5 {[%clk 0:00:42.7]} 39... Kd3 {[%clk 0:01:27.2]} 40. Ra8 {[%clk 0:00:21.2]}
40... Rf7+ {[%clk 0:01:23]} 41. Ke6 {[%clk 0:00:20.2]} 41... Rg7 {[%clk
0:01:22.5]} 42. c6 {[%clk 0:00:17.7]} 42... Ke2 {[%clk 0:01:19.9]} 43. Rb1
{[%clk 0:00:17.5]} 43... Kxf2 {[%clk 0:01:16.8]} 44. Ra2+ {[%clk 0:00:16.5]}
44... Ke3 {[%clk 0:01:15.5]} 45. Rb3+ {[%clk 0:00:15.5]} 45... Bc3 {[%clk
0:01:12.5]} 46. Rxc3+ {[%clk 0:00:15.5]} 46... Kd4 {[%clk 0:01:12.9]} 47. Rc1
{[%clk 0:00:14.5]} 47... e3 {[%clk 0:01:10.8]} 48. c7 {[%clk 0:00:14.4]} 48...
Rxc7 {[%clk 0:01:07.7]} 49. Rxc7 {[%clk 0:00:14.4]} 49... e2 {[%clk 0:01:06.8]}
50. Rc1 {[%clk 0:00:09.8]} 50... Ke3 {[%clk 0:01:01.5]} 51. Rb1 {[%clk
0:00:03.1]} 51... f2 {[%clk 0:00:56.3]} 52. Rxe2+ {[%clk 0:00:02.7]} 52... Kxe2
{[%clk 0:00:54]} 53. Kxe5 {[%clk 0:00:02.9]} 53... Kf3 {[%clk 0:00:48.4]} 54.
Ra1 {[%clk 0:00:02.8]} 54... Kg2 {[%clk 0:00:48.4]} 55. Rb1 {[%clk 0:00:03.1]}
55... Kxh2 {[%clk 0:00:48.3]} 56. b5 {[%clk 0:00:03.6]} 56... Kxg3 {[%clk
0:00:48.1]} 57. b6 {[%clk 0:00:03.9]} 57... Kg2 {[%clk 0:00:48.5]} 58. b7 {[%clk
0:00:04]} 58... h5 {[%clk 0:00:46.3]} 59. b8=Q {[%clk 0:00:03.4]} 59... f1=Q
{[%clk 0:00:45.9]} 60. Qg8+ {[%clk 0:00:03.6]} 60... Kh2 {[%clk 0:00:42.5]} 61.
Rxf1 {[%clk 0:00:04.5]} 1-0

[Event "*** SCC Grand Prix: Titled Tuesday Blitz"]
[Site "Chess.com"]
[Date "2020.06.02"]
[Round "8"]
[White "GoValya"]
[Black "allvim"]
[Result "0-1"]
[WhiteElo "2171"]
[BlackElo "2307"]
[TimeControl "180+1"]
[EndTime "11:37:24 PDT"]
[Termination "allvim won by resignation"]

1. d4 {[%clk 0:03:00.9]} 1... Nf6 {[%clk 0:03:00]} 2. c4 {[%clk 0:03:00.5]} 2...
g6 {[%clk 0:02:59.9]} 3. g3 {[%clk 0:03:00.6]} 3... Bg7 {[%clk 0:02:58.9]} 4.
Bg2 {[%clk 0:03:00.8]} 4... d5 {[%clk 0:02:59.5]} 5. cxd5 {[%clk 0:03:00.1]}
5... Nxd5 {[%clk 0:03:00.4]} 6. e4 {[%clk 0:03:00.4]} 6... Nb6 {[%clk
0:03:00.5]} 7. Ne2 {[%clk 0:02:59.5]} 7... O-O {[%clk 0:03:00.4]} 8. O-O {[%clk
0:02:59.1]} 8... Nc6 {[%clk 0:02:56.9]} 9. Be3 {[%clk 0:02:57.8]} 9... Nc4
{[%clk 0:02:51.8]} 10. Qc2 {[%clk 0:02:42.5]} 10... Nxe3 {[%clk 0:02:51.4]} 11.
fxe3 {[%clk 0:02:42.8]} 11... Bh6 {[%clk 0:02:41.7]} 12. Qb3 {[%clk 0:02:29.8]}
12... Na5 {[%clk 0:01:51.7]} 13. Qc3 {[%clk 0:02:29.3]} 13... e5 {[%clk
0:01:41.4]} 14. Qxa5 {[%clk 0:02:11.8]} 14... Bxe3+ {[%clk 0:01:40.3]} 15. Kh1
{[%clk 0:02:11.3]} 15... exd4 {[%clk 0:01:40.8]} 16. Na3 {[%clk 0:01:45.1]}
16... d3 {[%clk 0:01:23.8]} 17. Nf4 {[%clk 0:01:33.8]} 17... Bg4 {[%clk
0:01:04.4]} 18. Nd5 {[%clk 0:01:30.8]} 18... Bd4 {[%clk 0:00:42.5]} 19. Nc4
{[%clk 0:01:01.5]} 19... Be2 {[%clk 0:00:37.2]} 20. Rf4 {[%clk 0:00:55.2]} 20...
b6 {[%clk 0:00:33.7]} 21. Qd2 {[%clk 0:00:48.2]} 21... c6 {[%clk 0:00:34]} 22.
Nc3 {[%clk 0:00:45.8]} 22... b5 {[%clk 0:00:31.9]} 23. Nxe2 {[%clk 0:00:30.3]}
23... bxc4 {[%clk 0:00:20.1]} 24. Nxd4 {[%clk 0:00:29.6]} 24... Qxd4 {[%clk
0:00:21]} 25. e5 {[%clk 0:00:29.9]} 25... Qb6 {[%clk 0:00:19.6]} 26. Rxc4 {[%clk
0:00:28.8]} 26... Rad8 {[%clk 0:00:15.2]} 27. Rxc6 {[%clk 0:00:27.7]} 27... Qd4
{[%clk 0:00:14.7]} 28. e6 {[%clk 0:00:26.9]} 28... fxe6 {[%clk 0:00:14.4]} 29.
Rxe6 {[%clk 0:00:26.2]} 29... Rf2 {[%clk 0:00:14.2]} 30. Qe3 {[%clk 0:00:23.5]}
30... Qxe3 {[%clk 0:00:11.2]} 31. Rxe3 {[%clk 0:00:22.8]} 31... Rxb2 {[%clk
0:00:12.1]} 32. Rd1 {[%clk 0:00:19.9]} 32... d2 {[%clk 0:00:12.1]} 33. Ra3
{[%clk 0:00:14.4]} 33... Rd7 {[%clk 0:00:11]} 34. Bf3 {[%clk 0:00:14.2]} 34...
Rc2 {[%clk 0:00:09.6]} 35. Kg2 {[%clk 0:00:13.9]} 35... Rc1 {[%clk 0:00:07.3]}
36. Kf2 {[%clk 0:00:13.3]} 36... Kg7 {[%clk 0:00:07.4]} 37. Ke2 {[%clk
0:00:13.1]} 37... Rc2 {[%clk 0:00:06.2]} 38. Rd3 {[%clk 0:00:12.6]} 38... Re7+
{[%clk 0:00:06.7]} 39. Re3 {[%clk 0:00:12.4]} 39... Rd7 {[%clk 0:00:07.2]} 40.
Rxd2 {[%clk 0:00:12.4]} 40... Rcxd2+ {[%clk 0:00:07.7]} 41. Ke1 {[%clk
0:00:12.3]} 41... Rxa2 {[%clk 0:00:06.5]} 42. Be4 {[%clk 0:00:13]} 42... Rdd2
{[%clk 0:00:05.8]} 43. Rd3 {[%clk 0:00:12.1]} 43... Rxd3 {[%clk 0:00:05.7]} 44.
Bxd3 {[%clk 0:00:11.8]} 44... Rxh2 {[%clk 0:00:06.6]} 45. g4 {[%clk 0:00:11.4]}
45... Kf6 {[%clk 0:00:06.1]} 46. Be2 {[%clk 0:00:12.3]} 46... Ke5 {[%clk
0:00:06.1]} 47. Kd2 {[%clk 0:00:13.2]} 47... Kd4 {[%clk 0:00:05.8]} 48. Ke1
{[%clk 0:00:13]} 48... Ke3 {[%clk 0:00:05.5]} 49. Bf1 {[%clk 0:00:10.5]} 49...
Rh1 {[%clk 0:00:05.3]} 50. g5 {[%clk 0:00:10.6]} 50... Rg1 {[%clk 0:00:05.6]}
51. Kd1 {[%clk 0:00:10.3]} 51... Rxf1+ {[%clk 0:00:06.5]} 52. Kc2 {[%clk
0:00:11.2]} 52... Rf5 {[%clk 0:00:07.1]} 53. Kc3 {[%clk 0:00:11.9]} 53... Rxg5
{[%clk 0:00:08]} 54. Kc4 {[%clk 0:00:12.5]} 54... Rf5 {[%clk 0:00:08.9]} 55. Kc3
{[%clk 0:00:13.4]} 55... Rf8 {[%clk 0:00:09.8]} 56. Kc4 {[%clk 0:00:14.3]} 56...
g5 {[%clk 0:00:10.7]} 57. Kc3 {[%clk 0:00:14.9]} 57... g4 {[%clk 0:00:11.6]} 58.
Kc4 {[%clk 0:00:15.2]} 58... g3 {[%clk 0:00:12.5]} 0-1

[Event "*** SCC Grand Prix: Titled Tuesday Blitz"]
[Site "Chess.com"]
[Date "2020.06.02"]
[Round "8"]
[White "nikitakhoroshev"]
[Black "MiroVlasenko"]
[Result "1-0"]
[WhiteElo "2469"]
[BlackElo "2612"]
[TimeControl "180+1"]
[EndTime "11:37:25 PDT"]
[Termination "nikitakhoroshev won by resignation"]

1. d4 {[%clk 0:03:00.9]} 1... Nf6 {[%clk 0:02:58.4]} 2. c4 {[%clk 0:03:00.7]}
2... e6 {[%clk 0:02:58.4]} 3. Nc3 {[%clk 0:03:00.1]} 3... Bb4 {[%clk 0:02:58]}
4. e3 {[%clk 0:03:00.1]} 4... b6 {[%clk 0:02:57]} 5. Ne2 {[%clk 0:02:59.7]} 5...
Ba6 {[%clk 0:02:55.1]} 6. a3 {[%clk 0:02:59.6]} 6... Bxc3+ {[%clk 0:02:54.8]} 7.
Nxc3 {[%clk 0:03:00.5]} 7... d5 {[%clk 0:02:53.9]} 8. cxd5 {[%clk 0:02:56.8]}
8... Bxf1 {[%clk 0:02:53]} 9. Kxf1 {[%clk 0:02:57.7]} 9... Nxd5 {[%clk
0:02:51.2]} 10. Qa4+ {[%clk 0:02:41.8]} 10... c6 {[%clk 0:02:45.2]} 11. Ne2
{[%clk 0:02:37.2]} 11... f5 {[%clk 0:02:29.1]} 12. Qc2 {[%clk 0:02:27.8]} 12...
O-O {[%clk 0:02:23.4]} 13. e4 {[%clk 0:02:27.9]} 13... fxe4 {[%clk 0:02:17.8]}
14. Qxe4 {[%clk 0:02:28.8]} 14... Qf6 {[%clk 0:02:12.9]} 15. f3 {[%clk
0:02:28.6]} 15... Qf5 {[%clk 0:02:06.9]} 16. Ng3 {[%clk 0:02:24]} 16... Qxe4
{[%clk 0:02:02.5]} 17. Nxe4 {[%clk 0:02:24.9]} 17... Nd7 {[%clk 0:02:01.6]} 18.
Bd2 {[%clk 0:02:20.3]} 18... N7f6 {[%clk 0:01:54.3]} 19. Ng5 {[%clk 0:02:20.1]}
19... Rfe8 {[%clk 0:01:53]} 20. Kf2 {[%clk 0:02:17.8]} 20... h6 {[%clk
0:01:47.8]} 21. Nh3 {[%clk 0:02:00]} 21... Rac8 {[%clk 0:01:41.4]} 22. Rac1
{[%clk 0:01:51]} 22... Kf7 {[%clk 0:01:40.7]} 23. Rhe1 {[%clk 0:01:49.8]} 23...
g5 {[%clk 0:01:35.3]} 24. Kg3 {[%clk 0:01:48.9]} 24... Ne7 {[%clk 0:01:29.8]}
25. Kf2 {[%clk 0:01:46.7]} 25... Nf5 {[%clk 0:01:29.7]} 26. Bc3 {[%clk
0:01:44.3]} 26... Red8 {[%clk 0:01:29.4]} 27. Rcd1 {[%clk 0:01:41.5]} 27... Rd5
{[%clk 0:01:27.9]} 28. Re5 {[%clk 0:01:29.5]} 28... Rcd8 {[%clk 0:01:27]} 29.
Rxd5 {[%clk 0:01:29.6]} 29... exd5 {[%clk 0:01:15.1]} 30. Ng1 {[%clk 0:01:25.3]}
30... Re8 {[%clk 0:01:12.3]} 31. g4 {[%clk 0:01:21.1]} 31... Nh4 {[%clk
0:01:08.5]} 32. Ne2 {[%clk 0:01:17.5]} 32... Re6 {[%clk 0:01:05.6]} 33. Ng3
{[%clk 0:01:12.8]} 33... Ne8 {[%clk 0:01:00.2]} 34. Re1 {[%clk 0:00:45.4]} 34...
Nc7 {[%clk 0:00:56.8]} 35. Re3 {[%clk 0:00:41.1]} 35... Rxe3 {[%clk 0:00:50.5]}
36. Kxe3 {[%clk 0:00:42]} 36... Ne6 {[%clk 0:00:50.3]} 37. Ne2 {[%clk
0:00:38.6]} 37... c5 {[%clk 0:00:44.4]} 38. a4 {[%clk 0:00:36.4]} 38... c4
{[%clk 0:00:41.1]} 39. Bb4 {[%clk 0:00:30.5]} 39... a6 {[%clk 0:00:37.8]} 40.
Bd6 {[%clk 0:00:29]} 40... Ke8 {[%clk 0:00:32]} 41. Bg3 {[%clk 0:00:23.7]} 41...
Ng6 {[%clk 0:00:22.4]} 42. Nc3 {[%clk 0:00:20.5]} 42... Ne7 {[%clk 0:00:20.5]}
43. h4 {[%clk 0:00:19.3]} 43... Kd7 {[%clk 0:00:19.9]} 44. h5 {[%clk 0:00:18.9]}
44... Kc6 {[%clk 0:00:19.7]} 45. Be5 {[%clk 0:00:18.3]} 45... b5 {[%clk
0:00:19.9]} 46. axb5+ {[%clk 0:00:18.3]} 46... axb5 {[%clk 0:00:20.2]} 47. Na2
{[%clk 0:00:19]} 47... Kd7 {[%clk 0:00:17.9]} 48. Nb4 {[%clk 0:00:18.2]} 48...
Nc6 {[%clk 0:00:14.6]} 49. Nxd5 {[%clk 0:00:17.8]} 49... b4 {[%clk 0:00:15]} 50.
Nf6+ {[%clk 0:00:16.8]} 50... Ke7 {[%clk 0:00:14.9]} 51. Ne4 {[%clk 0:00:16.3]}
51... b3 {[%clk 0:00:13.4]} 52. Bf6+ {[%clk 0:00:14.7]} 52... Kf7 {[%clk
0:00:13]} 53. d5 {[%clk 0:00:15.2]} 53... Nc7 {[%clk 0:00:10.9]} 54. dxc6 {[%clk
0:00:14.7]} 54... Nd5+ {[%clk 0:00:11.3]} 55. Kd4 {[%clk 0:00:14.5]} 55... c3
{[%clk 0:00:11.7]} 56. Nxc3 {[%clk 0:00:13.9]} 56... Nxf6 {[%clk 0:00:11.7]} 57.
c7 {[%clk 0:00:13.3]} 1-0